fUSD/lending_fUSD_20240331
["ID","MTS","AMOUNT","RATE_DAILY","PERIOD"]
[321086118,1711888264622,-2863.54,0.00042738,4]
[321086119,1711888264632,-500.0,0.00042738,4]
[321086120,1711888264641,-2361.59,0.00042738,4]
[321086121,1711888264651,-3245.62,0.00042738,4]
[321086122,1711888264660,-500.0,0.00042738,4]
[321086123,1711888264670,-500.0,0.00042738,4]
[321086124,1711888264680,-500.0,0.00042738,4]
[321086125,1711888264690,-3669.18,0.00042738,4]
[321086126,1711888264699,-617.11135178,0.00042738,4]
[321086127,1711888264709,-4066.83,0.00042738,4]
[321086128,1711888264719,-554.04032653,0.00042738,4]
[321086129,1711888264728,-1719.84,0.00042738,4]
[321086130,1711888264738,-1887.58,0.00042738,4]
[321086131,1711888264749,-1978.23,0.00042738,4]
[321086132,1711888264758,-500.0,0.00042738,4]
[321086133,1711888264768,-2123.2,0.00042738,4]
[321086134,1711888264778,-500.0,0.00042738,4]
[321086135,1711888264787,-2163.21,0.00042738,4]
[321086136,1711888264797,-13146.94,0.00042738,4]
[321086137,1711888264808,-770.08,0.00042738,4]
[321086138,1711888264817,-2967.22,0.00042738,4]
[321086139,1711888264830,-3613.06,0.00042738,4]
[321086140,1711888264840,-500.0,0.00042738,4]
[321086141,1711888264850,-665.17,0.00042738,4]
[321086142,1711888264861,-647.02,0.00042738,4]
[321086143,1711888264870,-2347.75,0.00042738,4]
[321086144,1711888264880,-926.3,0.00042738,4]
[321086145,1711888264890,-5265.02,0.00042738,4]
[321086146,1711888264900,-500.0,0.00042738,4]
[321086147,1711888264910,-17483.08,0.00042738,4]
[321086148,1711888264920,-1411.68,0.00042738,4]
[321086149,1711888264929,-2004.24,0.00042738,4]
[321086150,1711888264939,-1050.51,0.00042739,4]
[321086151,1711888264948,-500.0,0.00042739,4]
[321086152,1711888264958,-1568.85426541,0.00042761,36]
[321086153,1711888264967,-500.0,0.00042769,4]
[321086154,1711888264976,-150.0,0.00042769,4]
[321086155,1711888264986,-500.0,0.00042769,4]
[321086156,1711888264996,-2103.77,0.00042769,4]
[321086157,1711888265006,-500.0,0.00042769,4]
[321086158,1711888265016,-500.0,0.00042769,4]
[321086159,1711888265026,-3037.14,0.00042769,4]
[321086160,1711888265037,-614.09407242,0.00042769,4]
[321086161,1711888265047,-1493.14,0.00042769,4]
[321086162,1711888265057,-635.56,0.00042769,4]
[321086163,1711888265068,-156.8140047,0.00042772,45]
[321086164,1711888265078,-150.0,0.00042796,2]
[321086165,1711888265088,-500.0,0.00042869,2]
[321086166,1711888265098,-557.44023725,0.00042869,4]
[321086167,1711888265107,-500.0,0.00042869,4]
[321086168,1711888265118,-500.0,0.00042869,4]
[321086169,1711888265128,-500.0,0.00042869,4]
[321086170,1711888265138,-500.0,0.00042869,4]
[321086171,1711888265148,-500.0,0.00042869,4]
[321086172,1711888265159,-500.0,0.00042869,4]
[321086173,1711888265170,-500.0,0.00042869,4]
[321086174,1711888265180,-500.0,0.00042869,4]
[321086175,1711888265191,-2436.82,0.00042869,4]
[321086176,1711888265201,-13083.36,0.00042869,4]
[321086177,1711888265212,-3244.81,0.00042869,4]
[321086178,1711888265222,-500.0,0.00042869,4]
[321086179,1711888265232,-581.3,0.00042869,4]
[321086180,1711888265243,-10000.18,0.00042869,4]
[321086181,1711888265254,-500.0,0.00042869,4]
[321086182,1711888265265,-500.0,0.00042869,4]
[321086183,1711888265275,-499.07,0.000429,7]
[321086184,1711888265285,-462.27,0.000429,7]
[321086185,1711888265295,-200.0,0.000429,15]
[321086186,1711888265305,-150.01,0.00042911,2]
[321086187,1711888265318,-150.01,0.00042911,2]
[321086188,1711888265328,-1000.0,0.00042912,2]
[321086189,1711888265338,-1000.0,0.00042912,2]
[321086190,1711888265348,-1000.0,0.00042912,2]
[321086191,1711888265360,-1000.0,0.00042912,2]
[321086192,1711888265370,-1000.0,0.00042912,2]
[321086193,1711888265379,-1000.0,0.00042912,2]
[321086194,1711888265389,-1000.0,0.00042912,2]
[321086195,1711888265398,-1000.0,0.00042912,2]
[321086196,1711888265407,-1000.0,0.00042912,2]
[321086197,1711888265417,-1000.0,0.00042912,2]
[321086198,1711888265427,-1000.0,0.00042912,2]
[321086199,1711888265436,-475.21802113,0.00042912,2]
[321086200,1711888265642,-524.78197887,0.00042912,2]
[321086201,1711888265652,-420.73734495,0.00042912,2]
[321086202,1711888265664,-353.35,0.00042912,2]
[321086203,1711888266356,325.34493795,0.00031354,4]
[321086204,1711888266378,1480.02022385,0.00031354,4]
[321086205,1711888341680,224.20800371,0.00024,2]
[321086206,1711888341968,1519.78552981,0.00031354,4]
[321086207,1711888343112,2455.33346268,0.00031354,4]
[321086208,1711888344247,2960.83126962,0.00031354,4]
[321086209,1711888346412,862.28398827,0.00031354,4]
[321086210,1711888347821,1969.29646311,0.00031354,4]
[321086211,1711888351238,439.27920468,0.00031354,2]
[321086212,1711888351928,950.11778517,0.00029786,2]
[321086213,1711888353112,973.4553725,0.00023516,2]
[321086214,1711888353440,155.0,0.00029786,30]
[321086215,1711888354072,1565.37998075,0.00031354,4]
[321086216,1711888359416,269.56270118,0.00031354,4]
[321086217,1711888359665,267.10379752,0.00024,2]
[321086218,1711888360093,1519.78552981,0.00031354,4]
[321086219,1711888362206,1528.788648,0.00031354,4]
[321086220,1711888363779,449.37039804,0.00031354,4]
[321086221,1711888369865,950.11778517,0.00029786,2]
[321086222,1711888381970,350.85924241,0.00024,2]
[321086223,1711888387875,948.81964446,0.000228,2]
[321086225,1711888427417,156.81400468,0.00041813,41]
[321086229,1711888700556,450.0,0.00041813,120]
[321086230,1711888823445,176.2,0.00031351,2]
[321086231,1711889028182,156.81400468,0.00041865,41]
[321086332,1711889433171,-229.0,0.000328,3]
[321086333,1711889433180,-1177.0,0.00034373,2]
[321086334,1711889433189,-6129.7448066,0.00034374,4]
[321086335,1711889433198,-1562.613953,0.00034375,2]
[321086336,1711889433207,-150.0,0.00034548,10]
[321086337,1711889433216,-150.0,0.00035866,2]
[321086338,1711889433225,-3007.7429,0.00035867,2]
[321086339,1711889433236,-154.6196642,0.00036836,7]
[321086340,1711889433244,-499.99,0.00036934,2]
[321086341,1711889433254,-478.94,0.00036934,2]
[321086342,1711889433263,-840.8608,0.00037138,4]
[321086343,1711889433271,-150.99,0.00037138,2]
[321086344,1711889433280,-299.99,0.00037531,30]
[321086345,1711889433289,-172.49,0.00037998,2]
[321086346,1711889433298,-488.56,0.00038781,2]
[321086347,1711889433308,-200.0,0.00038782,2]
[321086348,1711889433317,-1416.0,0.00038786,2]
[321086349,1711889433327,-200.0,0.000388,2]
[321086350,1711889433336,-700.14,0.000388,60]
[321086351,1711889433345,-154.69,0.00038806,15]
[321086352,1711889433354,-177.45,0.00038846,120]
[321086353,1711889433363,-250.0,0.00038863,112]
[321086354,1711889433372,-12413.15,0.00038887,2]
[321086355,1711889433381,-500.0,0.00038958,2]
[321086356,1711889433390,-250.0,0.00038959,2]
[321086357,1711889433399,-4365.97,0.00038984,2]
[321086358,1711889433409,-800.0,0.00039053,2]
[321086359,1711889433418,-151.28,0.00039066,2]
[321086360,1711889433427,-719.15629138,0.000391,2]
[321086361,1711889433436,-2765.92,0.00039101,2]
[321086362,1711889433445,-156.41895585,0.00039105,7]
[321086363,1711889433454,-150.0,0.00039112,2]
[321086364,1711889433463,-250.0,0.00039113,2]
[321086365,1711889433472,-2006.36,0.00039141,2]
[321086366,1711889433481,-592.21,0.00039147,2]
[321086367,1711889433491,-168.98,0.00039182,2]
[321086368,1711889433500,-242.85,0.00039198,120]
[321086369,1711889433509,-478.94,0.00039198,2]
[321086370,1711889433519,-151.28,0.00039223,2]
[321086371,1711889433529,-395.01513737,0.00039254,4]
[321086372,1711889433538,-151.28,0.0003938,2]
[321086373,1711889433547,-151.28,0.00039536,2]
[321086374,1711889433556,-151.28,0.00039693,2]
[321086376,1711889433566,-200.0,0.00039836,2]
[321086377,1711889433575,-151.28,0.00039849,2]
[321086378,1711889433583,-151.28,0.00040006,2]
[321086379,1711889433593,-151.28,0.00040163,2]
[321086380,1711889433605,-151.28,0.00040319,2]
[321086381,1711889433615,-151.28,0.00040476,2]
[321086382,1711889433625,-651.88,0.00040569,2]
[321086383,1711889433635,-651.88,0.0004058,2]
[321086384,1711889433645,-651.88,0.0004059,2]
[321086385,1711889433656,-206.73687634,0.000406,4]
[321086386,1711889433666,-651.88,0.00040601,2]
[321086387,1711889433676,-651.88,0.00040612,2]
[321086388,1711889433684,-651.88,0.00040622,2]
[321086389,1711889433694,-151.28,0.00040632,2]
[321086390,1711889433703,-651.88,0.00040633,2]
[321086391,1711889433711,-651.88,0.00040644,2]
[321086392,1711889433720,-651.88,0.00040654,2]
[321086393,1711889433730,-651.88,0.00040665,2]
[321086394,1711889433741,-651.88,0.00040676,2]
[321086395,1711889433752,-651.88,0.00040686,2]
[321086396,1711889433762,-651.88,0.00040697,2]
[321086397,1711889433772,-651.88,0.00040708,2]
[321086398,1711889433783,-651.88,0.00040718,2]
[321086399,1711889433794,-651.88,0.00040729,2]
[321086400,1711889433805,-651.88,0.0004074,2]
[321086401,1711889433816,-651.88,0.00040751,2]
[321086402,1711889433825,-651.88,0.00040761,2]
[321086403,1711889433834,-651.88,0.00040772,2]
[321086404,1711889433843,-151.28,0.00040789,2]
[321086405,1711889433852,-151.28,0.00040946,2]
[321086406,1711889433861,-2032.0,0.00041,2]
[321086407,1711889433870,-361.32165686,0.00041094,4]
[321086408,1711889433880,-155.46509513,0.00041095,4]
[321086409,1711889433889,-1219.18866587,0.00041095,4]
[321086410,1711889433898,-3067.66199381,0.00041095,4]
[321086411,1711889433907,-3594.89899643,0.00041095,4]
[321086412,1711889433917,-9693.15040586,0.00041095,4]
[321086413,1711889433926,-1500.0,0.00041096,45]
[321086414,1711889433935,-179.0,0.00041096,2]
[321086415,1711889433944,-155.77991939,0.00041099,4]
[321086416,1711889433953,-1500.0,0.000411,2]
[321086417,1711889433962,-1250.0,0.000411,2]
[321086418,1711889433971,-151.28,0.00041102,2]
[321086419,1711889433980,-942.3872,0.00041164,2]
[321086420,1711889433989,-186.69469355,0.00041167,15]
[321086421,1711889433999,-151.69724403,0.00041167,11]
[321086422,1711889434008,-4139.22232372,0.00041167,15]
[321086423,1711889434017,-10359.8503831,0.00041167,2]
[321086424,1711889434027,-167.19854645,0.00041167,2]
[321086425,1711889434036,-248.06730869,0.00041167,13]
[321086426,1711889434044,-278.64406116,0.00041167,2]
[321086427,1711889434054,-869.42976376,0.00041167,10]
[321086428,1711889434063,-4817.82399863,0.00041167,2]
[321086429,1711889434072,-209.01652617,0.0004119,4]
[321086430,1711889434081,-469.09,0.00041256,2]
[321086431,1711889434090,-469.09,0.00041256,2]
[321086432,1711889434100,-469.09,0.00041256,2]
[321086433,1711889434108,-196.08699541,0.00041256,2]
[321086434,1711889434117,-150.76,0.00041256,2]
[321086435,1711889434127,-172.75,0.00041256,2]
[321086436,1711889434136,-172.75,0.00041256,2]
[321086437,1711889434145,-945.72437932,0.00041257,4]
[321086438,1711889434155,-172.75,0.00041258,2]
[321086439,1711889434166,-358.83292469,0.00041264,4]
[321086440,1711889434174,-463.80085125,0.00041264,4]
[321086441,1711889434183,-843.56891592,0.00041264,4]
[321086442,1711889434192,-499.49648442,0.00041265,4]
[321086443,1711889434202,-200.56549737,0.00041265,4]
[321086444,1711889434211,-21439.70780259,0.00041265,4]
[321086445,1711889434219,-160.91950738,0.00041266,4]
[321086446,1711889434228,-4963.98872767,0.00041266,2]
[321086447,1711889434239,-971794.29384135,0.00041266,4]
[321086448,1711889434249,-39856.13,0.00041267,2]
[321086449,1711889434258,-100000.0,0.00041267,2]
[321086450,1711889434268,-1696.9071,0.00041267,2]
[321086451,1711889434277,-245000.0,0.00041268,2]
[321086452,1711889434287,-154.6196642,0.00041348,30]
[321086453,1711889434297,-500.0,0.00041368,2]
[321086454,1711889434307,-478.94,0.00041462,2]
[321086455,1711889434317,-296.75056969,0.00041498,4]
[321086456,1711889434326,-300.0,0.00041499,2]
[321086457,1711889434335,-300.0,0.00041499,2]
[321086458,1711889434344,-278.64406116,0.00041525,2]
[321086459,1711889434355,-278.56574294,0.00041656,30]
[321086460,1711889434364,-4365.97,0.00041724,2]
[321086461,1711889434373,-1254.0,0.00041811,2]
[321086462,1711889434382,-1279.198,0.00041811,2]
[321086463,1711889434391,-803.0,0.00041811,2]
[321086464,1711889434400,-436.692,0.00041811,2]
[321086465,1711889434409,-281.324,0.00041811,2]
[321086466,1711889434418,-609.591,0.00041811,2]
[321086467,1711889434427,-213.0,0.00041811,2]
[321086468,1711889434436,-150.0,0.00041811,2]
[321086469,1711889434446,-5000.0,0.00041826,2]
[321086470,1711889434454,-168.0,0.00041863,7]
[321086471,1711889434463,-1662.93596695,0.00041865,2]
[321086472,1711889434473,-172.2025997,0.00041865,7]
[321086473,1711889434482,-278.64406116,0.00041884,2]
[321086474,1711889434491,-150.5,0.00041885,15]
[321086475,1711889434501,-150.5,0.00041895,15]
[321086476,1711889434509,-12343.47,0.00041902,2]
[321086477,1711889434518,-150.5,0.00041905,15]
[321086478,1711889434528,-162.44496167,0.00041908,30]
[321086479,1711889434537,-1150.99136952,0.00042,6]
[321086480,1711889434546,-500.0,0.00042205,7]
[321086481,1711889434555,-500.0,0.00042205,7]
[321086482,1711889434564,-500.0,0.00042205,7]
[321086483,1711889434574,-500.0,0.00042205,7]
[321086484,1711889434583,-500.0,0.00042205,7]
[321086485,1711889434593,-500.0,0.00042205,7]
[321086486,1711889434603,-278.64406116,0.00042242,2]
[321086487,1711889434612,-1000.0,0.000425,10]
[321086488,1711889434622,-278.64406116,0.000426,2]
[321086489,1711889434631,-180.0,0.0004268,2]
[321086490,1711889434640,-239.161564,0.000427,14]
[321086491,1711889434649,-5575.02,0.000427,4]
[321086492,1711889434658,-155.62,0.000427,4]
[321086493,1711889434667,-5575.02,0.000427,4]
[321086494,1711889434676,-155.62,0.000427,4]
[321086495,1711889434685,-5575.02,0.000427,4]
[321086496,1711889434694,-155.62,0.000427,4]
[321086497,1711889434703,-5575.02,0.000427,4]
[321086498,1711889434712,-155.62,0.000427,4]
[321086499,1711889434721,-5575.02,0.000427,4]
[321086500,1711889434730,-155.62,0.000427,4]
[321086501,1711889434739,-5575.02,0.000427,4]
[321086502,1711889434749,-155.62,0.000427,4]
[321086503,1711889434758,-5575.02,0.000427,4]
[321086504,1711889434767,-155.62,0.000427,4]
[321086505,1711889434776,-5575.02,0.000427,4]
[321086506,1711889434785,-155.62,0.000427,4]
[321086507,1711889434794,-5575.02,0.000427,4]
[321086508,1711889434803,-155.62,0.000427,4]
[321086509,1711889434812,-5575.02,0.000427,4]
[321086510,1711889434821,-155.62,0.000427,4]
[321086511,1711889434830,-5575.02,0.000427,4]
[321086512,1711889434839,-155.62,0.000427,4]
[321086513,1711889434849,-5575.02,0.000427,4]
[321086514,1711889434858,-155.62,0.000427,4]
[321086515,1711889434867,-5575.02,0.000427,4]
[321086516,1711889434876,-5575.02,0.000427,4]
[321086517,1711889434885,-5575.02,0.000427,4]
[321086518,1711889434894,-5575.02,0.000427,4]
[321086519,1711889434903,-5575.02,0.000427,4]
[321086520,1711889434912,-5575.02,0.000427,4]
[321086521,1711889434921,-5575.02,0.000427,4]
[321086522,1711889434931,-5575.02,0.000427,4]
[321086523,1711889434939,-1138.6061,0.00042869,16]
[321086524,1711889434948,-640.0,0.000429,32]
[321086525,1711889434957,-150.0,0.00042901,2]
[321086526,1711889434966,-150.01,0.00042911,2]
[321086527,1711889434976,-225.91265505,0.00042912,2]
[321086528,1711889434985,-1000.0,0.00042912,2]
[321086529,1711889434994,-1000.0,0.00042912,2]
[321086530,1711889435002,-1000.0,0.00042912,2]
[321086531,1711889435011,-1000.0,0.00042912,2]
[321086532,1711889435021,-1000.0,0.00042912,2]
[321086533,1711889435030,-1000.0,0.00042912,2]
[321086534,1711889435039,-15064.65698516,0.00042912,10]
[321086535,1711889435049,-2500.5589346,0.00042963,2]
[321086536,1711889435059,-184.41,0.00042976,2]
[321086537,1711889435068,-1000.0,0.00043,120]
[321086538,1711889435077,-1001.84893519,0.00043,120]
[321086539,1711889435087,-1000.0,0.00043,3]
[321086540,1711889435096,-1004.0,0.00043,2]
[321086541,1711889435106,-450.0,0.00043,60]
[321086542,1711889435116,-500.0,0.00043009,2]
[321086543,1711889435125,-4101.3484829,0.00043014,2]
[321086544,1711889435134,-408.39,0.000431,7]
[321086545,1711889435143,-1491.2938486,0.00043228,2]
[321086546,1711889435156,-156.81400468,0.0004325,47]
[321086547,1711889435166,-270.0,0.00043269,4]
[321086548,1711889435175,-206.38069431,0.0004327,4]
[321086549,1711889435184,-23125.90277012,0.0004327,4]
[321086550,1711889435194,-150.0,0.00043359,60]
[321086551,1711889435203,-162.4012862,0.00043359,60]
[321086552,1711889435212,-500.0,0.00043359,60]
[321086553,1711889435222,-151.0,0.0004336,2]
[321086554,1711889435232,-640.0,0.000434,33]
[321086555,1711889435243,-239.161564,0.00043457,14]
[321086556,1711889435252,-4139.22232361,0.0004347,18]
[321086557,1711889435261,-158.0,0.000437,54]
[321086558,1711889435270,-200.0,0.00043706,15]
[321086559,1711889435280,-800.0,0.00043706,20]
[321086560,1711889435289,-500.0,0.00043706,20]
[321086561,1711889435298,-200.0,0.00043706,20]
[321086562,1711889435307,-478.94,0.00043726,2]
[321086563,1711889435316,-1003.0729374,0.000438,10]
[321086564,1711889435326,-869.4297637,0.000438,11]
[321086565,1711889435335,-4817.82399859,0.00043804,2]
[321086566,1711889435344,-10359.85038304,0.00043808,2]
[321086567,1711889435354,-8287.8,0.00043836,2]
[321086568,1711889435363,-500.0,0.00043836,19]
[321086569,1711889435373,-408.39,0.000439,7]
[321086570,1711889435382,-640.0,0.000439,33]
[321086571,1711889435391,-800.0,0.00043935,2]
[321086572,1711889435401,-1000.0,0.00044,120]
[321086573,1711889435411,-650.0,0.00044,70]
[321086574,1711889435420,-2793.540413,0.00044,44]
[321086575,1711889435430,-150.0,0.00044096,120]
[321086576,1711889435440,-156.81400468,0.0004425,51]
[321086577,1711889435450,-640.0,0.000444,34]
[321086578,1711889435460,-4365.97,0.00044464,2]
[321086579,1711889435470,-2896.5156705,0.00044491,2]
[321086580,1711889435480,-4750.7859088,0.00044491,2]
[321086581,1711889435490,-238.0,0.00044492,15]
[321086582,1711889435500,-184.41,0.00044495,2]
[321086583,1711889435510,-238.0,0.00044502,15]
[321086584,1711889435520,-238.0,0.00044512,15]
[321086585,1711889435529,-172.75,0.00044512,2]
[321086586,1711889435539,-164726.50062858,0.00044522,3]
[321086587,1711889435548,-239.161564,0.00044522,14]
[321086588,1711889435558,-397546.58554155,0.00044522,2]
[321086589,1711889435568,-7158.0,0.00044575,10]
[321086590,1711889435578,-408.39,0.000447,7]
[321086591,1711889435587,-150.0,0.000447,8]
[321086592,1711889435597,-178.353,0.00044811,2]
[321086593,1711889435607,-213.0,0.00044811,2]
[321086594,1711889435616,-200.0,0.00044816,2]
[321086595,1711889435626,-640.0,0.000449,34]
[321086596,1711889435635,-258.10815571,0.00044929,4]
[321086597,1711889435645,-155.0,0.00044929,2]
[321086598,1711889435654,-197.53330416,0.00044929,4]
[321086599,1711889435664,-165.81336204,0.00044929,4]
[321086600,1711889435674,-155.53026294,0.00044929,4]
[321086601,1711889435685,-155.0,0.00044929,4]
[321086602,1711889435695,-155.29409589,0.00044929,4]
[321086603,1711889435704,-205.23806172,0.00044929,4]
[321086604,1711889435715,-4304.23605843,0.0004493,4]
[321086605,1711889435726,-4212.26054406,0.0004493,4]
[321086606,1711889435736,-2935.11741451,0.0004493,4]
[321086607,1711889435746,-5000.0,0.00044986,4]
[321086608,1711889435757,-328.07527769,0.00045,4]
[321086609,1711889435767,-1500.0,0.00045,4]
[321086610,1711889435776,-10455.85648032,0.00045,5]
[321086611,1711889435786,-500.0,0.00045,110]
[321086612,1711889435796,-1000.0,0.00045,120]
[321086613,1711889435806,-155.9383495,0.00045,14]
[321086614,1711889435816,-475.44184996,0.00045,30]
[321086615,1711889435825,-173.15168265,0.00045,7]
[321086616,1711889435835,-64920.71790115,0.00045,30]
[321086617,1711889435844,-1836.07550072,0.00045,120]
[321086618,1711889435855,-399.25,0.00045,7]
[321086619,1711889435864,-369.82,0.00045,7]
[321086620,1711889435873,-650.0,0.00045,80]
[321086621,1711889435883,-3001.57615148,0.0004502,5]
[321086622,1711889435894,-1297.1407,0.0004514,30]
[321086623,1711889435903,-500.0,0.00045197,4]
[321086624,1711889435913,-500.0,0.00045197,4]
[321086625,1711889435922,-500.0,0.00045197,4]
[321086626,1711889435932,-500.0,0.00045197,4]
[321086627,1711889435941,-500.0,0.00045197,4]
[321086628,1711889435951,-500.0,0.00045197,4]
[321086629,1711889435960,-500.0,0.00045197,4]
[321086630,1711889435970,-500.0,0.00045197,4]
[321086631,1711889435980,-500.0,0.00045197,4]
[321086632,1711889435990,-500.0,0.00045197,4]
[321086633,1711889436000,-500.0,0.00045197,4]
[321086634,1711889436010,-500.0,0.00045197,4]
[321086635,1711889436020,-500.0,0.00045197,4]
[321086636,1711889436031,-500.0,0.00045197,4]
[321086637,1711889436041,-500.0,0.00045197,4]
[321086638,1711889436051,-500.0,0.00045197,4]
[321086639,1711889436061,-500.0,0.00045197,4]
[321086640,1711889436071,-500.0,0.00045197,4]
[321086641,1711889436081,-500.0,0.00045197,4]
[321086642,1711889436091,-609.0,0.00045197,4]
[321086643,1711889436101,-313.55201445,0.000452,120]
[321086644,1711889436110,-480.0,0.000452,32]
[321086645,1711889436120,-268.77,0.000452,101]
[321086646,1711889436288,-480.0,0.000452,32]
[321086647,1711889436299,-150.41,0.000452,21]
[321086648,1711889436310,-473.0,0.000452,21]
[321086649,1711889436321,-303.537319,0.000452,9]
[321086650,1711889436333,-150.0,0.000452,8]
[321086651,1711889436343,-2500.0,0.000452,2]
[321086652,1711889436354,-7513.16027902,0.00045204,2]
[321086653,1711889436365,-38232.19424494,0.00045204,2]
[321086654,1711889436375,-12068.95363053,0.00045204,2]
[321086655,1711889436386,-4561.50497404,0.00045204,2]
[321086656,1711889436396,-871.83681813,0.00045204,2]
[321086657,1711889436406,-4829.28498711,0.00045204,2]
[321086658,1711889436416,-239.161564,0.00045204,14]
[321086659,1711889436426,-239.161564,0.00045204,14]
[321086660,1711889436436,-500.0,0.00045205,30]
[321086661,1711889436446,-500.0,0.00045205,30]
[321086662,1711889436456,-500.0,0.00045205,30]
[321086663,1711889436466,-500.0,0.00045205,30]
[321086664,1711889436476,-156.81400468,0.0004525,56]
[321086665,1711889436486,-640.0,0.000454,35]
[321086666,1711889436496,-5400.2233347,0.00045446,2]
[321086667,1711889436506,-500.0,0.00045479,30]
[321086668,1711889436517,-408.39,0.000455,7]
[321086669,1711889436527,-150.0,0.000455,8]
[321086670,1711889436536,-155.43849745,0.0004559,30]
[321086671,1711889436546,-369.82,0.000456,7]
[321086672,1711889436556,-399.25,0.000456,7]
[321086673,1711889436567,-152.0,0.0004564,4]
[321086674,1711889436577,-154.69,0.00045655,15]
[321086675,1711889436587,-242.21,0.0004568,15]
[321086676,1711889436597,-150.5,0.0004569,15]
[321086677,1711889436607,-150.0,0.00045703,120]
[321086678,1711889436618,-155.43849745,0.00045745,30]
[321086679,1711889436628,-500.0,0.00045753,30]
[321086680,1711889436638,-500.0,0.00045753,30]
[321086681,1711889436648,-500.0,0.00045753,30]
[321086682,1711889436657,-500.0,0.00045753,30]
[321086683,1711889436668,-4139.22232361,0.00045773,21]
[321086684,1711889436678,-3292.4724063,0.00045895,2]
[321086685,1711889436688,-640.0,0.000459,36]
[321086686,1711889436698,-478.94,0.0004599,2]
[321086687,1711889436707,-2168.00272388,0.00046,2]
[321086688,1711889436717,-10000.0,0.00046,2]
[321086689,1711889436727,-150.0,0.00046,10]
[321086690,1711889436736,-658.75372694,0.00046,2]
[321086691,1711889436746,-3200.0,0.00046,4]
[321086692,1711889436755,-500.0,0.00046,80]
[321086693,1711889436766,-1000.0,0.00046,120]
[321086694,1711889436775,-150.0,0.00046,8]
[321086695,1711889436784,-184.41,0.00046015,2]
[321086696,1711889436794,-233.36252727,0.00046026,2]
[321086697,1711889436803,-598.39069455,0.0004617,60]
[321086698,1711889436813,-239.161564,0.00046197,14]
[321086699,1711889436823,-239.161564,0.00046197,14]
[321086700,1711889436833,-369.82,0.000462,7]
[321086701,1711889436843,-399.25,0.000462,7]
[321086702,1711889436853,-408.39,0.000463,7]
[321086703,1711889436862,-470.79841751,0.00046301,30]
[321086704,1711889436872,-500.0,0.00046301,30]
[321086705,1711889436882,-500.0,0.00046301,30]
[321086706,1711889436892,-514.56791954,0.00046301,30]
[321086707,1711889436901,-158.83668511,0.00046374,4]
[321086708,1711889436911,-640.0,0.000464,36]
[321086709,1711889436921,-869.4297637,0.00046434,12]
[321086710,1711889436930,-4817.82399859,0.00046441,2]
[321086711,1711889436940,-10359.85038304,0.00046449,2]
[321086712,1711889436949,-200.08015829,0.00046473,4]
[321086713,1711889436959,-150.0,0.000465,8]
[321086714,1711889436968,-315.26,0.000465,2]
[321086715,1711889436978,-500.0,0.00046575,4]
[321086716,1711889436987,-2002.46945421,0.000466,120]
[321086717,1711889436997,-369.82,0.000468,7]
[321086718,1711889437007,-399.25,0.000468,7]
[321086719,1711889437017,-1013.1,0.000468,2]
[321086720,1711889437026,-6049.6607606,0.00046815,2]
[321086721,1711889437035,-155.19377156,0.00046847,4]
[321086722,1711889437045,-500.0,0.00046849,4]